fUSD/lending_fUSD_20250609
["ID","MTS","AMOUNT","RATE_DAILY","PERIOD"]
[365092769,1749462689177,-480.0,0.00023726,2]
[365092770,1749462689186,-480.0,0.00023726,2]
[365092771,1749462689196,-500.0,0.00023726,2]
[365092772,1749462689205,-480.0,0.00023726,2]
[365092773,1749462689216,-480.0,0.00023726,2]
[365092774,1749462689226,-678.44,0.00023726,2]
[365092775,1749462689235,-480.0,0.00023726,2]
[365092776,1749462689245,-480.0,0.00023726,2]
[365092777,1749462689254,-480.0,0.00023726,2]
[365092778,1749462689265,-480.0,0.00023726,2]
[365092779,1749462689274,-480.0,0.00023726,2]
[365092780,1749462689284,-480.0,0.00023726,2]
[365092781,1749462689294,-480.0,0.00023726,2]
[365092782,1749462689304,-465.28663997,0.00023726,2]
[365092783,1749462689314,-480.0,0.00023726,2]
[365092784,1749462689323,-480.0,0.00023726,2]
[365092785,1749462689333,-480.0,0.00023726,2]
[365092786,1749462689342,-480.0,0.00023726,2]
[365092787,1749462689352,-480.0,0.00023726,2]
[365092788,1749462689362,-442.35305125,0.00023726,2]
[365092789,1749462689371,-480.0,0.00023726,2]
[365092790,1749462689381,-172.68199672,0.00023726,2]
[365092791,1749462689390,-603.01,0.00023726,2]
[365092792,1749462689399,-390.6815831,0.00023726,2]
[365092793,1749462689409,-480.0,0.00023726,2]
[365092794,1749462689418,-848.5,0.00023726,2]
[365092795,1749462689427,-480.0,0.00023726,2]
[365092796,1749462689436,-480.0,0.00023726,2]
[365092797,1749462689446,-480.0,0.00023726,2]
[365092798,1749462689456,-480.0,0.00023726,2]
[365092799,1749462689465,-241.83866172,0.00023726,2]
[365092800,1749462689475,-480.0,0.00023726,2]
[365092801,1749462689484,-480.0,0.00023726,2]
[365092802,1749462689494,-480.0,0.00023726,2]
[365092803,1749462689503,-480.0,0.00023726,2]
[365092804,1749462689513,-239.1764521,0.00023726,2]
[365092805,1749462689523,-480.0,0.00023726,2]
[365092806,1749462689533,-480.0,0.00023726,2]
[365092807,1749462689542,-674.21,0.00023726,2]
[365092808,1749462689552,-506.1,0.00023726,2]
[365092809,1749462689561,-605.88,0.00023726,2]
[365092810,1749462689571,-480.0,0.00023726,2]
[365092811,1749462689580,-480.0,0.00023726,2]
[365092812,1749462689590,-623.62,0.00023726,2]
[365092813,1749462689599,-480.0,0.00023726,2]
[365092814,1749462689609,-480.0,0.00023726,2]
[365092815,1749462689618,-480.0,0.00023726,2]
[365092816,1749462689627,-480.0,0.00023726,2]
[365092817,1749462689637,-480.0,0.00023726,2]
[365092818,1749462689647,-588.66,0.00023726,2]
[365092819,1749462689656,-480.0,0.00023726,2]
[365092820,1749462689666,-540.8,0.00023726,2]
[365092821,1749462689675,-659.73,0.00023726,2]
[365092822,1749462689684,-480.0,0.00023726,2]
[365092823,1749462689694,-480.0,0.00023726,2]
[365092824,1749462689703,-480.0,0.00023726,2]
[365092825,1749462689713,-816.95,0.00023726,2]
[365092826,1749462689723,-655.61,0.00023726,2]
[365092827,1749462689733,-480.0,0.00023726,2]
[365092828,1749462689743,-601.69,0.00023726,2]
[365092829,1749462689753,-480.0,0.00023726,2]
[365092830,1749462689763,-480.0,0.00023726,2]
[365092831,1749462689773,-764.59,0.00023726,2]
[365092832,1749462689783,-491.29,0.00023726,2]
[365092833,1749462689792,-620.12,0.00023726,2]
[365092834,1749462689802,-480.0,0.00023726,2]
[365092835,1749462689811,-1664.0,0.00023726,2]
[365092836,1749462689821,-876.61,0.00023726,2]
[365092837,1749462689832,-888.29,0.00023726,2]
[365092838,1749462689842,-480.0,0.00023726,2]
[365092839,1749462689855,-480.0,0.00023726,2]
[365092840,1749462689864,-480.0,0.00023726,2]
[365092841,1749462689874,-480.0,0.00023726,2]
[365092842,1749462689884,-931.85,0.00023726,2]
[365092843,1749462689895,-480.0,0.00023726,2]
[365092844,1749462689905,-684.56,0.00023726,2]
[365092845,1749462689915,-480.0,0.00023726,2]
[365092846,1749462689926,-480.0,0.00023726,2]
[365092847,1749462689937,-480.0,0.00023726,2]
[365092848,1749462689947,-480.0,0.00023726,2]
[365092849,1749462689957,-14348.57,0.00023726,2]
[365092850,1749462689967,-1514.28,0.00023726,2]
[365092851,1749462689977,-480.0,0.00023726,2]
[365092852,1749462689988,-480.0,0.00023726,2]
[365092853,1749462689998,-1188.61,0.00023726,2]
[365092854,1749462690012,-687.61,0.00023726,2]
[365092855,1749462690023,-480.0,0.00023726,2]
[365092856,1749462690032,-480.0,0.00023726,2]
[365092857,1749462690041,-10581.38,0.00023726,2]
[365092858,1749462690052,-574.55,0.00023726,2]
[365092859,1749462690061,-596.16,0.00023726,2]
[365092860,1749462690071,-493.56,0.00023726,2]
[365092861,1749462690080,-480.0,0.00023726,2]
[365092862,1749462690089,-480.0,0.00023726,2]
[365092863,1749462690099,-529.71,0.00023726,2]
[365092864,1749462690108,-576.66,0.00023726,2]
[365092865,1749462690117,-480.0,0.00023726,2]
[365092866,1749462690127,-619.44,0.00023726,2]
[365092867,1749462690137,-480.0,0.00023726,2]
[365092868,1749462690147,-480.0,0.00023726,2]
[365092869,1749462690157,-8574.09,0.00023726,2]
[365092870,1749462690167,-480.0,0.00023726,2]
[365092871,1749462690176,-480.0,0.00023726,2]
[365092872,1749462690185,-1513.29,0.00023726,2]
[365092873,1749462690195,-480.0,0.00023726,2]
[365092874,1749462690205,-552.51,0.00023726,2]
[365092875,1749462690215,-622.75,0.00023726,2]
[365092876,1749462690224,-480.0,0.00023726,2]
[365092877,1749462690234,-480.0,0.00023726,2]
[365092878,1749462690244,-480.0,0.00023726,2]
[365092879,1749462690253,-1200.0,0.00023784,3]
[365092880,1749462690263,-383.0,0.00023836,7]
[365092881,1749462690274,-1704.57,0.00023836,2]
[365092882,1749462690283,-300.0,0.00023836,2]
[365092883,1749462690293,-152.0,0.0002388,11]
[365092884,1749462690303,-201.18400347,0.0002388,5]
[365092885,1749462690312,-480.0,0.0002389,2]
[365092886,1749462690322,-1281.25,0.0002389,2]
[365092887,1749462690332,-480.0,0.0002389,2]
[365092888,1749462690341,-480.0,0.0002389,2]
[365092889,1749462690352,-308.01712143,0.0002389,2]
[365092890,1749462690361,-480.0,0.0002389,2]
[365092891,1749462690371,-480.0,0.0002389,2]
[365092892,1749462690380,-480.0,0.0002389,2]
[365092893,1749462690390,-480.0,0.0002389,2]
[365092894,1749462690399,-632.38,0.0002389,2]
[365092895,1749462690409,-480.0,0.0002389,2]
[365092896,1749462690419,-621.28,0.0002389,2]
[365092897,1749462690429,-612.36003495,0.0002389,2]
[365092898,1749462690439,-480.0,0.0002389,2]
[365092899,1749462690449,-480.0,0.0002389,2]
[365092900,1749462690459,-608.47,0.0002389,2]
[365092901,1749462690468,-480.0,0.0002389,2]
[365092902,1749462690478,-480.0,0.0002389,2]
[365092903,1749462690488,-480.0,0.0002389,2]
[365092904,1749462690497,-480.0,0.0002389,2]
[365092905,1749462690507,-480.0,0.0002389,2]
[365092906,1749462690516,-480.0,0.0002389,2]
[365092907,1749462690526,-541.7,0.0002389,2]
[365092908,1749462690536,-480.0,0.0002389,2]
[365092909,1749462690546,-480.0,0.0002389,2]
[365092910,1749462690556,-480.0,0.0002389,2]
[365092911,1749462690565,-930.22,0.0002389,2]
[365092912,1749462690577,-772.31,0.0002389,2]
[365092913,1749462690586,-480.0,0.0002389,2]
[365092914,1749462690596,-720.88,0.0002389,2]
[365092915,1749462690605,-480.0,0.0002389,2]
[365092916,1749462690615,-198.67397118,0.0002389,2]
[365092917,1749462690625,-505.43,0.0002389,2]
[365092918,1749462690635,-480.0,0.0002389,2]
[365092919,1749462690644,-934.6,0.0002389,2]
[365092920,1749462690653,-480.0,0.0002389,2]
[365092921,1749462690663,-580.81,0.0002389,2]
[365092922,1749462690672,-520.2,0.0002389,2]
[365092923,1749462690682,-480.0,0.0002389,2]
[365092924,1749462690691,-480.0,0.0002389,2]
[365092925,1749462690701,-490.09,0.0002389,2]
[365092926,1749462690710,-480.0,0.0002389,2]
[365092927,1749462690720,-480.0,0.0002389,2]
[365092928,1749462690730,-480.0,0.0002389,2]
[365092929,1749462690739,-512.62,0.0002389,2]
[365092930,1749462690749,-678.5,0.0002389,2]
[365092931,1749462690759,-783.56,0.0002389,2]
[365092932,1749462690769,-480.0,0.0002389,2]
[365092933,1749462690779,-480.0,0.0002389,2]
[365092934,1749462690789,-500.0,0.0002389,2]
[365092935,1749462690799,-480.0,0.0002389,2]
[365092936,1749462690808,-480.0,0.0002389,2]
[365092937,1749462690818,-678.44,0.0002389,2]
[365092938,1749462690827,-480.0,0.0002389,2]
[365092939,1749462690838,-480.0,0.0002389,2]
[365092940,1749462690848,-480.0,0.0002389,2]
[365092941,1749462690858,-480.0,0.0002389,2]
[365092942,1749462690867,-480.0,0.0002389,2]
[365092943,1749462690877,-480.0,0.0002389,2]
[365092944,1749462690887,-480.0,0.0002389,2]
[365092945,1749462690896,-480.0,0.0002389,2]
[365092946,1749462690906,-340.49955775,0.0002389,2]
[365092947,1749462690915,-480.0,0.0002389,2]
[365092948,1749462690925,-480.0,0.0002389,2]
[365092949,1749462690934,-155.56194825,0.0002389,2]
[365092950,1749462690944,-480.0,0.0002389,2]
[365092951,1749462690953,-603.01,0.0002389,2]
[365092952,1749462690963,-480.0,0.0002389,2]
[365092953,1749462690972,-848.5,0.0002389,2]
[365092954,1749462690981,-480.0,0.0002389,2]
[365092955,1749462690991,-480.0,0.0002389,2]
[365092956,1749462691000,-480.0,0.0002389,2]
[365092957,1749462691010,-480.0,0.0002389,2]
[365092958,1749462691020,-252.58179189,0.0002389,2]
[365092959,1749462691030,-273.86761416,0.0002389,2]
[365092960,1749462691040,-480.0,0.0002389,2]
[365092961,1749462691049,-480.0,0.0002389,2]
[365092962,1749462691059,-480.0,0.0002389,2]
[365092963,1749462691069,-480.0,0.0002389,2]
[365092964,1749462691079,-674.21,0.0002389,2]
[365092965,1749462691089,-506.1,0.0002389,2]
[365092966,1749462691099,-605.88,0.0002389,2]
[365092967,1749462691109,-480.0,0.0002389,2]
[365092968,1749462691119,-480.0,0.0002389,2]
[365092969,1749462691128,-623.62,0.0002389,2]
[365092970,1749462691138,-480.0,0.0002389,2]
[365092971,1749462691148,-330.54784571,0.0002389,2]
[365092972,1749462691158,-474.20745654,0.0002389,2]
[365092973,1749462691168,-480.0,0.0002389,2]
[365092974,1749462691178,-480.0,0.0002389,2]
[365092975,1749462691188,-588.66,0.0002389,2]
[365092976,1749462691198,-480.0,0.0002389,2]
[365092977,1749462691208,-540.8,0.0002389,2]
[365092978,1749462691219,-659.73,0.0002389,2]
[365092979,1749462691229,-480.0,0.0002389,2]
[365092980,1749462691239,-480.0,0.0002389,2]
[365092981,1749462691248,-307.55146399,0.0002389,2]
[365092982,1749462691258,-816.95,0.0002389,2]
[365092983,1749462691267,-655.61,0.0002389,2]
[365092984,1749462691277,-480.0,0.0002389,2]
[365092985,1749462691287,-601.69,0.0002389,2]
[365092986,1749462691296,-480.0,0.0002389,2]
[365092987,1749462691306,-480.0,0.0002389,2]
[365092988,1749462691315,-764.59,0.0002389,2]
[365092989,1749462691465,-491.29,0.0002389,2]
[365092990,1749462691475,-620.12,0.0002389,2]
[365092991,1749462691484,-480.0,0.0002389,2]
[365092992,1749462691493,-1664.0,0.0002389,2]
[365092993,1749462691502,-876.61,0.0002389,2]
[365092994,1749462691511,-888.29,0.0002389,2]
[365092995,1749462691521,-480.0,0.0002389,2]
[365092996,1749462691530,-480.0,0.0002389,2]
[365092997,1749462691539,-480.0,0.0002389,2]
[365092998,1749462691548,-480.0,0.0002389,2]
[365092999,1749462691558,-931.85,0.0002389,2]
[365093000,1749462691567,-599.57179512,0.0002389,2]
[365093001,1749462691576,-684.56,0.0002389,2]
[365093002,1749462691586,-480.0,0.0002389,2]
[365093003,1749462691595,-480.0,0.0002389,2]
[365093004,1749462691604,-480.0,0.0002389,2]
[365093005,1749462691613,-480.0,0.0002389,2]
[365093006,1749462691623,-14348.57,0.0002389,2]
[365093007,1749462691633,-1514.28,0.0002389,2]
[365093008,1749462691643,-480.0,0.0002389,2]
[365093009,1749462691653,-480.0,0.0002389,2]
[365093010,1749462691663,-1188.61,0.0002389,2]
[365093011,1749462691673,-687.61,0.0002389,2]
[365093012,1749462691682,-480.0,0.0002389,2]
[365093013,1749462691691,-480.0,0.0002389,2]
[365093014,1749462691700,-10581.38,0.0002389,2]
[365093015,1749462691710,-574.55,0.0002389,2]
[365093016,1749462691719,-596.16,0.0002389,2]
[365093017,1749462691728,-493.56,0.0002389,2]
[365093018,1749462691738,-157.68010923,0.0002389,2]
[365093019,1749462691747,-480.0,0.0002389,2]
[365093020,1749462691756,-529.71,0.0002389,2]
[365093021,1749462691766,-576.66,0.0002389,2]
[365093022,1749462691775,-480.0,0.0002389,2]
[365093023,1749462691784,-619.44,0.0002389,2]
[365093024,1749462691794,-480.0,0.0002389,2]
[365093025,1749462691803,-480.0,0.0002389,2]
[365093026,1749462691812,-8574.09,0.0002389,2]
[365093027,1749462691821,-480.0,0.0002389,2]
[365093028,1749462691832,-480.0,0.0002389,2]
[365093029,1749462691842,-1513.29,0.0002389,2]
[365093030,1749462691854,-480.0,0.0002389,2]
[365093031,1749462691864,-552.51,0.0002389,2]
[365093032,1749462691873,-622.75,0.0002389,2]
[365093033,1749462691882,-480.0,0.0002389,2]
[365093034,1749462691892,-548.27907601,0.0002389,2]
[365093035,1749462691901,-516.44261075,0.0002389,2]
[365093036,1749462691911,-64699.07075637,0.0002389,2]
[365093037,1749462691920,-59943.70775185,0.00024,2]
[365093038,1749462691931,-990.28469784,0.00024,2]
[365093039,1749462691941,-1000.0,0.00024,2]
[365093040,1749462691950,-5000.0,0.00024,5]
[365093041,1749462691960,-2110.0,0.00024,2]
[365093042,1749462691969,-1330.84740884,0.00024,7]
[365093043,1749462691979,-3493.0,0.00024,7]
[365093044,1749462691989,-346.28,0.00024,14]
[365093045,1749462691999,-500.0,0.00024,2]
[365093046,1749462692009,-4000.0,0.00024,4]
[365093047,1749462692021,-150.0,0.00024001,120]
[365093048,1749462692032,-480.0,0.00024054,2]
[365093049,1749462692043,-1281.25,0.00024054,2]
[365093050,1749462692053,-529.06062145,0.00024054,2]
[365093051,1749462692063,-480.0,0.00024054,2]
[365093052,1749462692074,-480.0,0.00024054,2]
[365093053,1749462692083,-480.0,0.00024054,2]
[365093054,1749462692094,-480.0,0.00024054,2]
[365093055,1749462692103,-480.0,0.00024054,2]
[365093056,1749462692113,-632.38,0.00024054,2]
[365093057,1749462692123,-480.0,0.00024054,2]
[365093058,1749462692133,-621.28,0.00024054,2]
[365093059,1749462692143,-480.0,0.00024054,2]
[365093060,1749462692153,-600.85726297,0.00024054,2]
[365093061,1749462692163,-608.47,0.00024054,2]
[365093062,1749462692173,-480.0,0.00024054,2]
[365093063,1749462692183,-480.0,0.00024054,2]
[365093064,1749462692193,-480.0,0.00024054,2]
[365093065,1749462692203,-480.0,0.00024054,2]
[365093066,1749462692214,-480.0,0.00024054,2]
[365093067,1749462692223,-612.17273325,0.00024054,2]
[365093068,1749462692233,-480.0,0.00024054,2]
[365093069,1749462692244,-480.0,0.00024054,2]
[365093070,1749462692254,-480.0,0.00024054,2]
[365093071,1749462692264,-930.22,0.00024054,2]
[365093072,1749462692275,-772.31,0.00024054,2]
[365093073,1749462692285,-480.0,0.00024054,2]
[365093074,1749462692294,-720.88,0.00024054,2]
[365093075,1749462692305,-480.0,0.00024054,2]
[365093076,1749462692315,-505.43,0.00024054,2]
[365093077,1749462692325,-480.0,0.00024054,2]
[365093078,1749462692335,-934.6,0.00024054,2]
[365093079,1749462692344,-480.0,0.00024054,2]
[365093080,1749462692354,-580.81,0.00024054,2]
[365093081,1749462692364,-520.2,0.00024054,2]
[365093082,1749462692373,-480.0,0.00024054,2]
[365093083,1749462692383,-480.0,0.00024054,2]
[365093084,1749462692392,-490.09,0.00024054,2]
[365093085,1749462692401,-480.0,0.00024054,2]
[365093086,1749462692411,-480.0,0.00024054,2]
[365093087,1749462692420,-480.0,0.00024054,2]
[365093088,1749462692429,-512.62,0.00024054,2]
[365093089,1749462692439,-678.5,0.00024054,2]
[365093090,1749462692449,-783.56,0.00024054,2]
[365093091,1749462692458,-480.0,0.00024054,2]
[365093092,1749462692468,-480.0,0.00024054,2]
[365093093,1749462692478,-500.0,0.00024054,2]
[365093094,1749462692487,-480.0,0.00024054,2]
[365093095,1749462692496,-480.0,0.00024054,2]
[365093096,1749462692506,-678.44,0.00024054,2]
[365093097,1749462692515,-480.0,0.00024054,2]
[365093098,1749462692525,-480.0,0.00024054,2]
[365093099,1749462692535,-480.0,0.00024054,2]
[365093100,1749462692545,-480.0,0.00024054,2]
[365093101,1749462692555,-480.0,0.00024054,2]
[365093102,1749462692565,-480.0,0.00024054,2]
[365093103,1749462692574,-480.0,0.00024054,2]
[365093104,1749462692583,-480.0,0.00024054,2]
[365093105,1749462692593,-480.0,0.00024054,2]
[365093106,1749462692602,-480.0,0.00024054,2]
[365093107,1749462692612,-480.0,0.00024054,2]
[365093108,1749462692621,-603.01,0.00024054,2]
[365093109,1749462692631,-480.0,0.00024054,2]
[365093110,1749462692640,-848.5,0.00024054,2]
[365093111,1749462692650,-480.0,0.00024054,2]
[365093112,1749462692659,-480.0,0.00024054,2]
[365093113,1749462692668,-480.0,0.00024054,2]
[365093114,1749462692678,-480.0,0.00024054,2]
[365093115,1749462692687,-480.0,0.00024054,2]
[365093116,1749462692696,-480.0,0.00024054,2]
[365093117,1749462692706,-480.0,0.00024054,2]
[365093118,1749462692715,-480.0,0.00024054,2]
[365093119,1749462692724,-674.21,0.00024054,2]
[365093120,1749462692733,-506.1,0.00024054,2]
[365093121,1749462692742,-605.88,0.00024054,2]
[365093122,1749462692750,-480.0,0.00024054,2]
[365093123,1749462692760,-480.0,0.00024054,2]
[365093124,1749462692769,-623.62,0.00024054,2]
[365093125,1749462692778,-480.0,0.00024054,2]
[365093126,1749462692787,-480.0,0.00024054,2]
[365093127,1749462692796,-480.0,0.00024054,2]
[365093128,1749462692806,-588.66,0.00024054,2]
[365093129,1749462692815,-480.0,0.00024054,2]
[365093130,1749462692824,-540.8,0.00024054,2]
[365093131,1749462692834,-659.73,0.00024054,2]
[365093132,1749462692844,-480.0,0.00024054,2]
[365093133,1749462692856,-480.0,0.00024054,2]
[365093134,1749462692865,-816.95,0.00024054,2]
[365093135,1749462692874,-655.61,0.00024054,2]
[365093136,1749462692883,-480.0,0.00024054,2]
[365093137,1749462692893,-601.69,0.00024054,2]
[365093138,1749462692903,-393.05444617,0.00024054,2]
[365093139,1749462692912,-480.0,0.00024054,2]
[365093140,1749462692921,-764.59,0.00024054,2]
[365093141,1749462692930,-491.29,0.00024054,2]
[365093142,1749462692939,-620.12,0.00024054,2]
[365093143,1749462692949,-480.0,0.00024054,2]
[365093144,1749462692958,-1664.0,0.00024054,2]
[365093145,1749462692967,-876.61,0.00024054,2]
[365093146,1749462692976,-888.29,0.00024054,2]
[365093147,1749462692985,-480.0,0.00024054,2]
[365093148,1749462692995,-480.0,0.00024054,2]
[365093149,1749462693004,-281.16244096,0.00024054,2]
[365093150,1749462693014,-480.0,0.00024054,2]
[365093151,1749462693024,-931.85,0.00024054,2]
[365093152,1749462693034,-684.56,0.00024054,2]
[365093153,1749462693044,-480.0,0.00024054,2]
[365093154,1749462693053,-480.0,0.00024054,2]
[365093155,1749462693063,-480.0,0.00024054,2]
[365093156,1749462693072,-480.0,0.00024054,2]
[365093157,1749462693082,-14348.57,0.00024054,2]
[365093158,1749462693092,-1514.28,0.00024054,2]
[365093159,1749462693102,-480.0,0.00024054,2]
[365093160,1749462693112,-480.0,0.00024054,2]
[365093161,1749462693122,-1188.61,0.00024054,2]
[365093162,1749462693132,-687.61,0.00024054,2]
[365093163,1749462693142,-480.0,0.00024054,2]
[365093164,1749462693152,-480.0,0.00024054,2]
[365093165,1749462693162,-10581.38,0.00024054,2]
[365093166,1749462693172,-574.55,0.00024054,2]
[365093167,1749462693181,-596.16,0.00024054,2]
[365093168,1749462693191,-493.56,0.00024054,2]
[365093169,1749462693203,-480.0,0.00024054,2]
[365093170,1749462693213,-529.71,0.00024054,2]
[365093171,1749462693222,-576.66,0.00024054,2]
[365093172,1749462693232,-480.0,0.00024054,2]
[365093173,1749462693241,-619.44,0.00024054,2]
[365093174,1749462693251,-172.30817524,0.00024054,2]
[365093175,1749462693261,-607.82152287,0.00024054,2]
[365093176,1749462693271,-8574.09,0.00024054,2]
[365093177,1749462693281,-480.0,0.00024054,2]
[365093178,1749462693290,-480.0,0.00024054,2]
[365093179,1749462693300,-1513.29,0.00024054,2]
[365093180,1749462693310,-480.0,0.00024054,2]
[365093181,1749462693320,-552.51,0.00024054,2]
[365093182,1749462693329,-622.75,0.00024054,2]
[365093183,1749462693339,-480.0,0.00024054,2]
[365093184,1749462693349,-200.0,0.000241,2]
[365093185,1749462693359,-1306.70255572,0.000241,2]
[365093186,1749462693369,-480.0,0.00024109,2]
[365093187,1749462693380,-480.0,0.00024109,2]
[365093188,1749462693392,-480.0,0.00024109,2]
[365093189,1749462693403,-480.0,0.00024109,2]
[365093190,1749462693415,-521.30935464,0.00024109,2]
[365093191,1749462693426,-383.0,0.0002411,7]
[365093192,1749462693437,-165.96407566,0.0002411,2]
[365093193,1749462693448,-1000.0,0.00024134,2]
[365093194,1749462693460,-240.0,0.00024164,7]
[365093195,1749462693471,-383.0,0.00024164,7]
[365093196,1749462693482,-409.28763973,0.0002421,2]
[365093197,1749462693493,-3587.24677826,0.0002421,2]
[365093198,1749462693504,-480.0,0.00024219,2]
[365093199,1749462693515,-1281.25,0.00024219,2]
[365093200,1749462693528,-480.0,0.00024219,2]
[365093201,1749462693541,-480.0,0.00024219,2]
[365093202,1749462693552,-480.0,0.00024219,2]
[365093203,1749462693563,-552.02483875,0.00024219,2]
[365093204,1749462693572,-480.0,0.00024219,2]
[365093205,1749462693583,-632.38,0.00024219,2]
[365093206,1749462693593,-480.0,0.00024219,2]
[365093207,1749462693603,-621.28,0.00024219,2]
[365093208,1749462693613,-259.27739457,0.00024219,2]
[365093209,1749462693623,-608.47,0.00024219,2]
[365093210,1749462693634,-480.0,0.00024219,2]
[365093211,1749462693643,-480.0,0.00024219,2]
[365093212,1749462693655,-250.99341907,0.00024219,2]
[365093213,1749462693665,-546.41993829,0.00024219,2]
[365093214,1749462693675,-480.0,0.00024219,2]
[365093215,1749462693684,-480.0,0.00024219,2]
[365093216,1749462693693,-480.0,0.00024219,2]
[365093217,1749462693702,-480.0,0.00024219,2]
[365093218,1749462693711,-930.22,0.00024219,2]
[365093219,1749462693721,-772.31,0.00024219,2]
[365093220,1749462693730,-480.0,0.00024219,2]
[365093221,1749462693740,-720.88,0.00024219,2]
[365093222,1749462693749,-480.0,0.00024219,2]
[365093223,1749462693759,-505.43,0.00024219,2]
[365093224,1749462693768,-480.0,0.00024219,2]
[365093225,1749462693778,-934.6,0.00024219,2]
[365093226,1749462693788,-480.0,0.00024219,2]
[365093227,1749462693798,-580.81,0.00024219,2]
[365093228,1749462693807,-520.2,0.00024219,2]
[365093229,1749462693816,-480.0,0.00024219,2]
[365093230,1749462693825,-480.0,0.00024219,2]
[365093231,1749462693834,-490.09,0.00024219,2]
[365093232,1749462693844,-480.0,0.00024219,2]
[365093233,1749462693857,-480.0,0.00024219,2]
[365093234,1749462693867,-480.0,0.00024219,2]
[365093235,1749462693876,-512.62,0.00024219,2]
[365093236,1749462693887,-678.5,0.00024219,2]
[365093237,1749462693896,-783.56,0.00024219,2]
[365093238,1749462693906,-480.0,0.00024219,2]
[365093239,1749462693915,-480.0,0.00024219,2]
[365093240,1749462693926,-353.88213267,0.00024219,2]
[365093241,1749462693935,-480.0,0.00024219,2]
[365093242,1749462693944,-480.0,0.00024219,2]
[365093243,1749462693954,-678.44,0.00024219,2]
[365093244,1749462693963,-480.0,0.00024219,2]
[365093245,1749462693972,-480.0,0.00024219,2]
[365093246,1749462693981,-480.0,0.00024219,2]
[365093247,1749462693991,-480.0,0.00024219,2]
[365093248,1749462694000,-480.0,0.00024219,2]
[365093249,1749462694010,-480.0,0.00024219,2]
[365093250,1749462694020,-480.0,0.00024219,2]
[365093251,1749462694029,-480.0,0.00024219,2]
[365093252,1749462694039,-480.0,0.00024219,2]
[365093253,1749462694048,-480.0,0.00024219,2]
[365093254,1749462694057,-281.47312298,0.00024219,2]
[365093255,1749462694067,-603.01,0.00024219,2]
[365093256,1749462694077,-480.0,0.00024219,2]
[365093257,1749462694086,-848.5,0.00024219,2]
[365093258,1749462694096,-480.0,0.00024219,2]
[365093259,1749462694105,-535.38780428,0.00024219,2]
[365093260,1749462694116,-480.0,0.00024219,2]
[365093261,1749462694125,-150.38951467,0.00024219,2]
[365093262,1749462694134,-480.0,0.00024219,2]
[365093263,1749462694143,-480.0,0.00024219,2]
[365093264,1749462694154,-480.0,0.00024219,2]
[365093265,1749462694163,-480.0,0.00024219,2]
[365093266,1749462694174,-674.21,0.00024219,2]
[365093267,1749462694183,-506.1,0.00024219,2]
[365093268,1749462694193,-605.88,0.00024219,2]